{"text_format":"3","workbook":"xlsx","n_sheets":13,"sheets":["Leden","Únor","Březen","Duben","Květen","Červen","Červenec","Srpen","Září","Říjen","Listopad","Prosinec","Souhrn od začátku roku"],"not_rendered":{"charts":1,"defined_names":13},"read":"whole","date_system":"1900"}

{"sheet":"Leden","index":0,"n_rows":9,"n_cols":14,"rows_kept":9,"merged":[[3,0,4,0],[6,0,7,0]]}
["LEDEN"]
["Internetový prodej",null,"ID aukce","Popis položky","Kupní cena","Prodejní cena","Online poplatky","Poplatky za PayPal","Poplatky za platbu kartou","Přepravní výlohy","Přepravní poplatky","Prodej – zisk/ztráta","Poštovné a balné – zisk/ztráta","Celkový zisk/ztráta"]
["Rok",null,"TS001","Položka 1",{"v":5,"d":"5.00 Kč"},{"v":4,"d":"4.00 Kč"},{"v":2,"d":"2.00 Kč"},{"v":1.5,"d":"1.50 Kč"},{"v":0,"d":"0.00 Kč"},{"v":4,"d":"4.00 Kč"},{"v":2,"d":"2.00 Kč"},{"$f":"IFERROR(LednovýProdej[Prodejní cena]-(LednovýProdej[Kupní cena]+LednovýProdej[Online poplatky]+LednovýProdej[Poplatky za PayPal]+LednovýProdej[Poplatky za platbu kartou]),\"\")","v":{"v":-4.5,"d":"-4.50 Kč"}},{"$f":"LednovýProdej[Přepravní výlohy]-LednovýProdej[Přepravní poplatky]","v":{"v":2,"d":"2.00 Kč"}},{"$f":"LednovýProdej[Prodej – zisk/ztráta]+LednovýProdej[Poštovné a balné – zisk/ztráta]","v":{"v":-2.5,"d":"-2.50 Kč"}}]
[2012,null,"TP004","Položka 2",{"v":2,"d":"2.00 Kč"},{"v":30,"d":"30.00 Kč"},{"v":0.5,"d":"0.50 Kč"},{"v":0.5,"d":"0.50 Kč"},null,{"v":4,"d":"4.00 Kč"},{"v":5.5,"d":"5.50 Kč"},{"$f":"IFERROR(LednovýProdej[Prodejní cena]-(LednovýProdej[Kupní cena]+LednovýProdej[Online poplatky]+LednovýProdej[Poplatky za PayPal]+LednovýProdej[Poplatky za platbu kartou]),\"\")","v":{"v":27,"d":"27.00 Kč"}},{"$f":"LednovýProdej[Přepravní výlohy]-LednovýProdej[Přepravní poplatky]","v":{"v":-1.5,"d":"-1.50 Kč"}},{"$f":"LednovýProdej[Prodej – zisk/ztráta]+LednovýProdej[Poštovné a balné – zisk/ztráta]","v":{"v":25.5,"d":"25.50 Kč"}}]
[null,null,"RS99","Položka 3",{"v":17,"d":"17.00 Kč"},{"v":23,"d":"23.00 Kč"},{"v":2,"d":"2.00 Kč"},null,{"v":2,"d":"2.00 Kč"},{"v":3,"d":"3.00 Kč"},{"v":2,"d":"2.00 Kč"},{"$f":"IFERROR(LednovýProdej[Prodejní cena]-(LednovýProdej[Kupní cena]+LednovýProdej[Online poplatky]+LednovýProdej[Poplatky za PayPal]+LednovýProdej[Poplatky za platbu kartou]),\"\")","v":{"v":2,"d":"2.00 Kč"}},{"$f":"LednovýProdej[Přepravní výlohy]-LednovýProdej[Přepravní poplatky]","v":{"v":1,"d":"1.00 Kč"}},{"$f":"LednovýProdej[Prodej – zisk/ztráta]+LednovýProdej[Poštovné a balné – zisk/ztráta]","v":{"v":3,"d":"3.00 Kč"}}]
["Celkový zisk/ztráta",null,"ST001","Položka 4",{"v":120,"d":"120.00 Kč"},{"v":180,"d":"180.00 Kč"},{"v":2,"d":"2.00 Kč"},{"v":1.5,"d":"1.50 Kč"},null,{"v":3,"d":"3.00 Kč"},{"v":2,"d":"2.00 Kč"},{"$f":"IFERROR(LednovýProdej[Prodejní cena]-(LednovýProdej[Kupní cena]+LednovýProdej[Online poplatky]+LednovýProdej[Poplatky za PayPal]+LednovýProdej[Poplatky za platbu kartou]),\"\")","v":{"v":56.5,"d":"56.50 Kč"}},{"$f":"LednovýProdej[Přepravní výlohy]-LednovýProdej[Přepravní poplatky]","v":{"v":1,"d":"1.00 Kč"}},{"$f":"LednovýProdej[Prodej – zisk/ztráta]+LednovýProdej[Poštovné a balné – zisk/ztráta]","v":{"v":57.5,"d":"57.50 Kč"}}]
[{"$f":"LednovýProdej[[#Totals],[Celkový zisk/ztráta]]","v":{"v":89,"d":"89.00 Kč"}},null,"ST001","Položka 5",{"v":10,"d":"10.00 Kč"},{"v":12,"d":"12.00 Kč"},{"v":2,"d":"2.00 Kč"},{"v":1.5,"d":"1.50 Kč"},null,{"v":14,"d":"14.00 Kč"},{"v":7,"d":"7.00 Kč"},{"$f":"IFERROR(LednovýProdej[Prodejní cena]-(LednovýProdej[Kupní cena]+LednovýProdej[Online poplatky]+LednovýProdej[Poplatky za PayPal]+LednovýProdej[Poplatky za platbu kartou]),\"\")","v":{"v":-1.5,"d":"-1.50 Kč"}},{"$f":"LednovýProdej[Přepravní výlohy]-LednovýProdej[Přepravní poplatky]","v":{"v":7,"d":"7.00 Kč"}},{"$f":"LednovýProdej[Prodej – zisk/ztráta]+LednovýProdej[Poštovné a balné – zisk/ztráta]","v":{"v":5.5,"d":"5.50 Kč"}}]
[null,null,"Celkem",{"$f":"\"Prodané položky: \"&SUBTOTAL(103,LednovýProdej[Popis položky])","v":"Prodané položky: 5"},{"$f":"SUBTOTAL(109,LednovýProdej[Kupní cena])","v":{"v":154,"d":"154.00 Kč"}},{"$f":"SUBTOTAL(109,LednovýProdej[Prodejní cena])","v":{"v":249,"d":"249.00 Kč"}},{"$f":"SUBTOTAL(109,LednovýProdej[Online poplatky])","v":{"v":8.5,"d":"8.50 Kč"}},{"$f":"SUBTOTAL(109,LednovýProdej[Poplatky za PayPal])","v":{"v":5,"d":"5.00 Kč"}},{"$f":"SUBTOTAL(109,LednovýProdej[Poplatky za platbu kartou])","v":{"v":2,"d":"2.00 Kč"}},{"$f":"SUBTOTAL(109,LednovýProdej[Přepravní výlohy])","v":{"v":28,"d":"28.00 Kč"}},{"$f":"SUBTOTAL(109,LednovýProdej[Přepravní poplatky])","v":{"v":18.5,"d":"18.50 Kč"}},{"$f":"SUBTOTAL(109,LednovýProdej[Prodej – zisk/ztráta])","v":{"v":79.5,"d":"79.50 Kč"}},{"$f":"SUBTOTAL(109,LednovýProdej[Poštovné a balné – zisk/ztráta])","v":{"v":9.5,"d":"9.50 Kč"}},{"$f":"SUBTOTAL(109,LednovýProdej[Celkový zisk/ztráta])","v":{"v":89,"d":"89.00 Kč"}}]
["Vývoj zisků a ztrát"]

{"sheet":"Únor","index":1,"n_rows":9,"n_cols":14,"rows_kept":9,"merged":[[3,0,4,0],[6,0,7,0]]}
["ÚNOR"]
["Internetový prodej",null,"ID aukce","Popis položky","Kupní cena","Prodejní cena","Online poplatky","Poplatky za PayPal","Poplatky za platbu kartou","Přepravní výlohy","Přepravní poplatky","Prodej – zisk/ztráta","Poštovné a balné – zisk/ztráta","Celkový zisk/ztráta"]
["Rok",null,"TS020","Položka 1",{"v":10,"d":"10.00 Kč"},{"v":175,"d":"175.00 Kč"},{"v":3,"d":"3.00 Kč"},{"v":1.5,"d":"1.50 Kč"},{"v":0,"d":"0.00 Kč"},{"v":7,"d":"7.00 Kč"},{"v":5,"d":"5.00 Kč"},{"$f":"IFERROR(ÚnorovýProdej[Prodejní cena]-(ÚnorovýProdej[Kupní cena]+ÚnorovýProdej[Online poplatky]+ÚnorovýProdej[Poplatky za PayPal]+ÚnorovýProdej[Poplatky za platbu kartou]),\"\")","v":{"v":160.5,"d":"160.50 Kč"}},{"$f":"ÚnorovýProdej[Přepravní výlohy]-ÚnorovýProdej[Přepravní poplatky]","v":{"v":2,"d":"2.00 Kč"}},{"$f":"ÚnorovýProdej[Prodej – zisk/ztráta]+ÚnorovýProdej[Poštovné a balné – zisk/ztráta]","v":{"v":162.5,"d":"162.50 Kč"}}]
[{"$f":"RočníProdej","v":2012},null,"TS021","Položka 2",{"v":32,"d":"32.00 Kč"},{"v":100,"d":"100.00 Kč"},{"v":3,"d":"3.00 Kč"},null,{"v":3.2,"d":"3.20 Kč"},{"v":20,"d":"20.00 Kč"},{"v":13,"d":"13.00 Kč"},{"$f":"IFERROR(ÚnorovýProdej[Prodejní cena]-(ÚnorovýProdej[Kupní cena]+ÚnorovýProdej[Online poplatky]+ÚnorovýProdej[Poplatky za PayPal]+ÚnorovýProdej[Poplatky za platbu kartou]),\"\")","v":{"v":61.8,"d":"61.80 Kč"}},{"$f":"ÚnorovýProdej[Přepravní výlohy]-ÚnorovýProdej[Přepravní poplatky]","v":{"v":7,"d":"7.00 Kč"}},{"$f":"ÚnorovýProdej[Prodej – zisk/ztráta]+ÚnorovýProdej[Poštovné a balné – zisk/ztráta]","v":{"v":68.8,"d":"68.80 Kč"}}]
[null,null,"TS022","Položka 3",{"v":3,"d":"3.00 Kč"},{"v":7,"d":"7.00 Kč"},{"v":2,"d":"2.00 Kč"},null,{"v":2,"d":"2.00 Kč"},{"v":0.5,"d":"0.50 Kč"},{"v":1.2,"d":"1.20 Kč"},{"$f":"IFERROR(ÚnorovýProdej[Prodejní cena]-(ÚnorovýProdej[Kupní cena]+ÚnorovýProdej[Online poplatky]+ÚnorovýProdej[Poplatky za PayPal]+ÚnorovýProdej[Poplatky za platbu kartou]),\"\")","v":{"v":0,"d":"0.00 Kč"}},{"$f":"ÚnorovýProdej[Přepravní výlohy]-ÚnorovýProdej[Přepravní poplatky]","v":{"v":-0.7,"d":"-0.70 Kč"}},{"$f":"ÚnorovýProdej[Prodej – zisk/ztráta]+ÚnorovýProdej[Poštovné a balné – zisk/ztráta]","v":{"v":-0.7,"d":"-0.70 Kč"}}]
["Celkový zisk/ztráta",null,"TS023","Položka 4",{"v":22,"d":"22.00 Kč"},{"v":18,"d":"18.00 Kč"},{"v":3,"d":"3.00 Kč"},{"v":1.5,"d":"1.50 Kč"},null,{"v":7,"d":"7.00 Kč"},{"v":10,"d":"10.00 Kč"},{"$f":"IFERROR(ÚnorovýProdej[Prodejní cena]-(ÚnorovýProdej[Kupní cena]+ÚnorovýProdej[Online poplatky]+ÚnorovýProdej[Poplatky za PayPal]+ÚnorovýProdej[Poplatky za platbu kartou]),\"\")","v":{"v":-8.5,"d":"-8.50 Kč"}},{"$f":"ÚnorovýProdej[Přepravní výlohy]-ÚnorovýProdej[Přepravní poplatky]","v":{"v":-3,"d":"-3.00 Kč"}},{"$f":"ÚnorovýProdej[Prodej – zisk/ztráta]+ÚnorovýProdej[Poštovné a balné – zisk/ztráta]","v":{"v":-11.5,"d":"-11.50 Kč"}}]
[{"$f":"ÚnorovýProdej[[#Totals],[Celkový zisk/ztráta]]","v":{"v":224.60000000000002,"d":"224.60 Kč"}},null,"TS024","Položka 5",{"v":10,"d":"10.00 Kč"},{"v":12,"d":"12.00 Kč"},{"v":2,"d":"2.00 Kč"},{"v":1.5,"d":"1.50 Kč"},null,{"v":14,"d":"14.00 Kč"},{"v":7,"d":"7.00 Kč"},{"$f":"IFERROR(ÚnorovýProdej[Prodejní cena]-(ÚnorovýProdej[Kupní cena]+ÚnorovýProdej[Online poplatky]+ÚnorovýProdej[Poplatky za PayPal]+ÚnorovýProdej[Poplatky za platbu kartou]),\"\")","v":{"v":-1.5,"d":"-1.50 Kč"}},{"$f":"ÚnorovýProdej[Přepravní výlohy]-ÚnorovýProdej[Přepravní poplatky]","v":{"v":7,"d":"7.00 Kč"}},{"$f":"ÚnorovýProdej[Prodej – zisk/ztráta]+ÚnorovýProdej[Poštovné a balné – zisk/ztráta]","v":{"v":5.5,"d":"5.50 Kč"}}]
[null,null,"Celkem",{"$f":"\"Prodané položky: \"&SUBTOTAL(103,ÚnorovýProdej[Popis položky])","v":"Prodané položky: 5"},{"$f":"SUBTOTAL(109,ÚnorovýProdej[Kupní cena])","v":{"v":77,"d":"77.00 Kč"}},{"$f":"SUBTOTAL(109,ÚnorovýProdej[Prodejní cena])","v":{"v":312,"d":"312.00 Kč"}},{"$f":"SUBTOTAL(109,ÚnorovýProdej[Online poplatky])","v":{"v":13,"d":"13.00 Kč"}},{"$f":"SUBTOTAL(109,ÚnorovýProdej[Poplatky za PayPal])","v":{"v":4.5,"d":"4.50 Kč"}},{"$f":"SUBTOTAL(109,ÚnorovýProdej[Poplatky za platbu kartou])","v":{"v":5.2,"d":"5.20 Kč"}},{"$f":"SUBTOTAL(109,ÚnorovýProdej[Přepravní výlohy])","v":{"v":48.5,"d":"48.50 Kč"}},{"$f":"SUBTOTAL(109,ÚnorovýProdej[Přepravní poplatky])","v":{"v":36.2,"d":"36.20 Kč"}},{"$f":"SUBTOTAL(109,ÚnorovýProdej[Prodej – zisk/ztráta])","v":{"v":212.3,"d":"212.30 Kč"}},{"$f":"SUBTOTAL(109,ÚnorovýProdej[Poštovné a balné – zisk/ztráta])","v":{"v":12.3,"d":"12.30 Kč"}},{"$f":"SUBTOTAL(109,ÚnorovýProdej[Celkový zisk/ztráta])","v":{"v":224.60000000000002,"d":"224.60 Kč"}}]
["Vývoj zisků a ztrát"]

{"sheet":"Březen","index":2,"n_rows":9,"n_cols":14,"rows_kept":9,"merged":[[3,0,4,0],[6,0,7,0]]}
["BŘEZEN"]
["Internetový prodej",null,"ID aukce","Popis položky","Kupní cena","Prodejní cena","Online poplatky","Poplatky za PayPal","Poplatky za platbu kartou","Přepravní výlohy","Přepravní poplatky","Prodej – zisk/ztráta","Poštovné a balné – zisk/ztráta","Celkový zisk/ztráta"]
["Rok",{"$nulls":10},{"$f":"IFERROR(BřeznovýProdej[Prodejní cena]-(BřeznovýProdej[Kupní cena]+BřeznovýProdej[Online poplatky]+BřeznovýProdej[Poplatky za PayPal]+BřeznovýProdej[Poplatky za platbu kartou]),\"\")","v":{"v":0,"d":"0.00 Kč"}},{"$f":"BřeznovýProdej[Přepravní výlohy]-BřeznovýProdej[Přepravní poplatky]","v":{"v":0,"d":"0.00 Kč"}},{"$f":"BřeznovýProdej[Prodej – zisk/ztráta]+BřeznovýProdej[Poštovné a balné – zisk/ztráta]","v":{"v":0,"d":"0.00 Kč"}}]
[{"$f":"RočníProdej","v":2012},{"$nulls":10},{"$f":"IFERROR(BřeznovýProdej[Prodejní cena]-(BřeznovýProdej[Kupní cena]+BřeznovýProdej[Online poplatky]+BřeznovýProdej[Poplatky za PayPal]+BřeznovýProdej[Poplatky za platbu kartou]),\"\")","v":{"v":0,"d":"0.00 Kč"}},{"$f":"BřeznovýProdej[Přepravní výlohy]-BřeznovýProdej[Přepravní poplatky]","v":{"v":0,"d":"0.00 Kč"}},{"$f":"BřeznovýProdej[Prodej – zisk/ztráta]+BřeznovýProdej[Poštovné a balné – zisk/ztráta]","v":{"v":0,"d":"0.00 Kč"}}]
[{"$nulls":11},{"$f":"IFERROR(BřeznovýProdej[Prodejní cena]-(BřeznovýProdej[Kupní cena]+BřeznovýProdej[Online poplatky]+BřeznovýProdej[Poplatky za PayPal]+BřeznovýProdej[Poplatky za platbu kartou]),\"\")","v":{"v":0,"d":"0.00 Kč"}},{"$f":"BřeznovýProdej[Přepravní výlohy]-BřeznovýProdej[Přepravní poplatky]","v":{"v":0,"d":"0.00 Kč"}},{"$f":"BřeznovýProdej[Prodej – zisk/ztráta]+BřeznovýProdej[Poštovné a balné – zisk/ztráta]","v":{"v":0,"d":"0.00 Kč"}}]
["Celkový zisk/ztráta",{"$nulls":10},{"$f":"IFERROR(BřeznovýProdej[Prodejní cena]-(BřeznovýProdej[Kupní cena]+BřeznovýProdej[Online poplatky]+BřeznovýProdej[Poplatky za PayPal]+BřeznovýProdej[Poplatky za platbu kartou]),\"\")","v":{"v":0,"d":"0.00 Kč"}},{"$f":"BřeznovýProdej[Přepravní výlohy]-BřeznovýProdej[Přepravní poplatky]","v":{"v":0,"d":"0.00 Kč"}},{"$f":"BřeznovýProdej[Prodej – zisk/ztráta]+BřeznovýProdej[Poštovné a balné – zisk/ztráta]","v":{"v":0,"d":"0.00 Kč"}}]
[{"$f":"BřeznovýProdej[[#Totals],[Celkový zisk/ztráta]]","v":{"v":0,"d":"0.00 Kč"}},{"$nulls":10},{"$f":"IFERROR(BřeznovýProdej[Prodejní cena]-(BřeznovýProdej[Kupní cena]+BřeznovýProdej[Online poplatky]+BřeznovýProdej[Poplatky za PayPal]+BřeznovýProdej[Poplatky za platbu kartou]),\"\")","v":{"v":0,"d":"0.00 Kč"}},{"$f":"BřeznovýProdej[Přepravní výlohy]-BřeznovýProdej[Přepravní poplatky]","v":{"v":0,"d":"0.00 Kč"}},{"$f":"BřeznovýProdej[Prodej – zisk/ztráta]+BřeznovýProdej[Poštovné a balné – zisk/ztráta]","v":{"v":0,"d":"0.00 Kč"}}]
[null,null,"Celkem",{"$f":"\"Prodané položky: \"&SUBTOTAL(103,BřeznovýProdej[Popis položky])","v":"Prodané položky: 0"},{"$f":"SUBTOTAL(109,BřeznovýProdej[Kupní cena])","v":{"v":0,"d":"0.00 Kč"}},{"$f":"SUBTOTAL(109,BřeznovýProdej[Prodejní cena])","v":{"v":0,"d":"0.00 Kč"}},{"$f":"SUBTOTAL(109,BřeznovýProdej[Online poplatky])","v":{"v":0,"d":"0.00 Kč"}},{"$f":"SUBTOTAL(109,BřeznovýProdej[Poplatky za PayPal])","v":{"v":0,"d":"0.00 Kč"}},{"$f":"SUBTOTAL(109,BřeznovýProdej[Poplatky za platbu kartou])","v":{"v":0,"d":"0.00 Kč"}},{"$f":"SUBTOTAL(109,BřeznovýProdej[Přepravní výlohy])","v":{"v":0,"d":"0.00 Kč"}},{"$f":"SUBTOTAL(109,BřeznovýProdej[Přepravní poplatky])","v":{"v":0,"d":"0.00 Kč"}},{"$f":"SUBTOTAL(109,BřeznovýProdej[Prodej – zisk/ztráta])","v":{"v":0,"d":"0.00 Kč"}},{"$f":"SUBTOTAL(109,BřeznovýProdej[Poštovné a balné – zisk/ztráta])","v":{"v":0,"d":"0.00 Kč"}},{"$f":"SUBTOTAL(109,BřeznovýProdej[Celkový zisk/ztráta])","v":{"v":0,"d":"0.00 Kč"}}]
["Vývoj zisků a ztrát"]

{"sheet":"Duben","index":3,"n_rows":9,"n_cols":14,"rows_kept":9,"merged":[[3,0,4,0],[6,0,7,0]]}
["DUBEN"]
["Internetový prodej",null,"ID aukce","Popis položky","Kupní cena","Prodejní cena","Online poplatky","Poplatky za PayPal","Poplatky za platbu kartou","Přepravní výlohy","Přepravní poplatky","Prodej – zisk/ztráta","Poštovné a balné – zisk/ztráta","Celkový zisk/ztráta"]
["Rok",{"$nulls":11},{"$f":"DubnovýProdej[Přepravní výlohy]-DubnovýProdej[Přepravní poplatky]","v":{"v":0,"d":"0.00 Kč"}},{"$f":"DubnovýProdej[Prodej – zisk/ztráta]+DubnovýProdej[Poštovné a balné – zisk/ztráta]","v":{"v":0,"d":"0.00 Kč"}}]
[{"$f":"RočníProdej","v":2012},{"$nulls":11},{"$f":"DubnovýProdej[Přepravní výlohy]-DubnovýProdej[Přepravní poplatky]","v":{"v":0,"d":"0.00 Kč"}},{"$f":"DubnovýProdej[Prodej – zisk/ztráta]+DubnovýProdej[Poštovné a balné – zisk/ztráta]","v":{"v":0,"d":"0.00 Kč"}}]
[{"$nulls":12},{"$f":"DubnovýProdej[Přepravní výlohy]-DubnovýProdej[Přepravní poplatky]","v":{"v":0,"d":"0.00 Kč"}},{"$f":"DubnovýProdej[Prodej – zisk/ztráta]+DubnovýProdej[Poštovné a balné – zisk/ztráta]","v":{"v":0,"d":"0.00 Kč"}}]
["Celkový zisk/ztráta",{"$nulls":11},{"$f":"DubnovýProdej[Přepravní výlohy]-DubnovýProdej[Přepravní poplatky]","v":{"v":0,"d":"0.00 Kč"}},{"$f":"DubnovýProdej[Prodej – zisk/ztráta]+DubnovýProdej[Poštovné a balné – zisk/ztráta]","v":{"v":0,"d":"0.00 Kč"}}]
[{"$f":"DubnovýProdej[[#Totals],[Celkový zisk/ztráta]]","v":{"v":0,"d":"0.00 Kč"}},{"$nulls":11},{"$f":"DubnovýProdej[Přepravní výlohy]-DubnovýProdej[Přepravní poplatky]","v":{"v":0,"d":"0.00 Kč"}},{"$f":"DubnovýProdej[Prodej – zisk/ztráta]+DubnovýProdej[Poštovné a balné – zisk/ztráta]","v":{"v":0,"d":"0.00 Kč"}}]
[null,null,"Celkem",{"$f":"\"Prodané položky: \"&SUBTOTAL(103,DubnovýProdej[Popis položky])","v":"Prodané položky: 0"},{"$f":"SUBTOTAL(109,DubnovýProdej[Kupní cena])","v":{"v":0,"d":"0.00 Kč"}},{"$f":"SUBTOTAL(109,DubnovýProdej[Prodejní cena])","v":{"v":0,"d":"0.00 Kč"}},{"$f":"SUBTOTAL(109,DubnovýProdej[Online poplatky])","v":{"v":0,"d":"0.00 Kč"}},{"$f":"SUBTOTAL(109,DubnovýProdej[Poplatky za PayPal])","v":{"v":0,"d":"0.00 Kč"}},{"$f":"SUBTOTAL(109,DubnovýProdej[Poplatky za platbu kartou])","v":{"v":0,"d":"0.00 Kč"}},{"$f":"SUBTOTAL(109,DubnovýProdej[Přepravní výlohy])","v":{"v":0,"d":"0.00 Kč"}},{"$f":"SUBTOTAL(109,DubnovýProdej[Přepravní poplatky])","v":{"v":0,"d":"0.00 Kč"}},{"$f":"SUBTOTAL(109,DubnovýProdej[Prodej – zisk/ztráta])","v":{"v":0,"d":"0.00 Kč"}},{"$f":"SUBTOTAL(109,DubnovýProdej[Poštovné a balné – zisk/ztráta])","v":{"v":0,"d":"0.00 Kč"}},{"$f":"SUBTOTAL(109,DubnovýProdej[Celkový zisk/ztráta])","v":{"v":0,"d":"0.00 Kč"}}]
["Vývoj zisků a ztrát"]

{"sheet":"Květen","index":4,"n_rows":9,"n_cols":14,"rows_kept":9,"merged":[[3,0,4,0],[6,0,7,0]]}
["KVĚTEN"]
["Internetový prodej",null,"ID aukce","Popis položky","Kupní cena","Prodejní cena","Online poplatky","Poplatky za PayPal","Poplatky za platbu kartou","Přepravní výlohy","Přepravní poplatky","Prodej – zisk/ztráta","Poštovné a balné – zisk/ztráta","Celkový zisk/ztráta"]
["Rok",{"$nulls":11},{"$f":"KvětnovýProdej[Přepravní výlohy]-KvětnovýProdej[Přepravní poplatky]","v":{"v":0,"d":"0.00 Kč"}},{"$f":"KvětnovýProdej[Prodej – zisk/ztráta]+KvětnovýProdej[Poštovné a balné – zisk/ztráta]","v":{"v":0,"d":"0.00 Kč"}}]
[{"$f":"RočníProdej","v":2012},{"$nulls":11},{"$f":"KvětnovýProdej[Přepravní výlohy]-KvětnovýProdej[Přepravní poplatky]","v":{"v":0,"d":"0.00 Kč"}},{"$f":"KvětnovýProdej[Prodej – zisk/ztráta]+KvětnovýProdej[Poštovné a balné – zisk/ztráta]","v":{"v":0,"d":"0.00 Kč"}}]
[{"$nulls":12},{"$f":"KvětnovýProdej[Přepravní výlohy]-KvětnovýProdej[Přepravní poplatky]","v":{"v":0,"d":"0.00 Kč"}},{"$f":"KvětnovýProdej[Prodej – zisk/ztráta]+KvětnovýProdej[Poštovné a balné – zisk/ztráta]","v":{"v":0,"d":"0.00 Kč"}}]
["Celkový zisk/ztráta",{"$nulls":11},{"$f":"KvětnovýProdej[Přepravní výlohy]-KvětnovýProdej[Přepravní poplatky]","v":{"v":0,"d":"0.00 Kč"}},{"$f":"KvětnovýProdej[Prodej – zisk/ztráta]+KvětnovýProdej[Poštovné a balné – zisk/ztráta]","v":{"v":0,"d":"0.00 Kč"}}]
[{"$f":"KvětnovýProdej[[#Totals],[Celkový zisk/ztráta]]","v":{"v":0,"d":"0.00 Kč"}},{"$nulls":11},{"$f":"KvětnovýProdej[Přepravní výlohy]-KvětnovýProdej[Přepravní poplatky]","v":{"v":0,"d":"0.00 Kč"}},{"$f":"KvětnovýProdej[Prodej – zisk/ztráta]+KvětnovýProdej[Poštovné a balné – zisk/ztráta]","v":{"v":0,"d":"0.00 Kč"}}]
[null,null,"Celkem",{"$f":"\"Prodané položky: \"&SUBTOTAL(103,KvětnovýProdej[Popis položky])","v":"Prodané položky: 0"},{"$f":"SUBTOTAL(109,KvětnovýProdej[Kupní cena])","v":{"v":0,"d":"0.00 Kč"}},{"$f":"SUBTOTAL(109,KvětnovýProdej[Prodejní cena])","v":{"v":0,"d":"0.00 Kč"}},{"$f":"SUBTOTAL(109,KvětnovýProdej[Online poplatky])","v":{"v":0,"d":"0.00 Kč"}},{"$f":"SUBTOTAL(109,KvětnovýProdej[Poplatky za PayPal])","v":{"v":0,"d":"0.00 Kč"}},{"$f":"SUBTOTAL(109,KvětnovýProdej[Poplatky za platbu kartou])","v":{"v":0,"d":"0.00 Kč"}},{"$f":"SUBTOTAL(109,KvětnovýProdej[Přepravní výlohy])","v":{"v":0,"d":"0.00 Kč"}},{"$f":"SUBTOTAL(109,KvětnovýProdej[Přepravní poplatky])","v":{"v":0,"d":"0.00 Kč"}},{"$f":"SUBTOTAL(109,KvětnovýProdej[Prodej – zisk/ztráta])","v":{"v":0,"d":"0.00 Kč"}},{"$f":"SUBTOTAL(109,KvětnovýProdej[Poštovné a balné – zisk/ztráta])","v":{"v":0,"d":"0.00 Kč"}},{"$f":"SUBTOTAL(109,KvětnovýProdej[Celkový zisk/ztráta])","v":{"v":0,"d":"0.00 Kč"}}]
["Vývoj zisků a ztrát"]

{"sheet":"Červen","index":5,"n_rows":9,"n_cols":14,"rows_kept":9,"merged":[[3,0,4,0],[6,0,7,0]]}
["ČERVEN"]
["Internetový prodej",null,"ID aukce","Popis položky","Kupní cena","Prodejní cena","Online poplatky","Poplatky za PayPal","Poplatky za platbu kartou","Přepravní výlohy","Přepravní poplatky","Prodej – zisk/ztráta","Poštovné a balné – zisk/ztráta","Celkový zisk/ztráta"]
["Rok",{"$nulls":11},{"$f":"ČervnovýProdej[Přepravní výlohy]-ČervnovýProdej[Přepravní poplatky]","v":{"v":0,"d":"0.00 Kč"}},{"$f":"ČervnovýProdej[Prodej – zisk/ztráta]+ČervnovýProdej[Poštovné a balné – zisk/ztráta]","v":{"v":0,"d":"0.00 Kč"}}]
[{"$f":"RočníProdej","v":2012},{"$nulls":11},{"$f":"ČervnovýProdej[Přepravní výlohy]-ČervnovýProdej[Přepravní poplatky]","v":{"v":0,"d":"0.00 Kč"}},{"$f":"ČervnovýProdej[Prodej – zisk/ztráta]+ČervnovýProdej[Poštovné a balné – zisk/ztráta]","v":{"v":0,"d":"0.00 Kč"}}]
[{"$nulls":12},{"$f":"ČervnovýProdej[Přepravní výlohy]-ČervnovýProdej[Přepravní poplatky]","v":{"v":0,"d":"0.00 Kč"}},{"$f":"ČervnovýProdej[Prodej – zisk/ztráta]+ČervnovýProdej[Poštovné a balné – zisk/ztráta]","v":{"v":0,"d":"0.00 Kč"}}]
["Celkový zisk/ztráta",{"$nulls":11},{"$f":"ČervnovýProdej[Přepravní výlohy]-ČervnovýProdej[Přepravní poplatky]","v":{"v":0,"d":"0.00 Kč"}},{"$f":"ČervnovýProdej[Prodej – zisk/ztráta]+ČervnovýProdej[Poštovné a balné – zisk/ztráta]","v":{"v":0,"d":"0.00 Kč"}}]
[{"$f":"ČervnovýProdej[[#Totals],[Celkový zisk/ztráta]]","v":{"v":0,"d":"0.00 Kč"}},{"$nulls":11},{"$f":"ČervnovýProdej[Přepravní výlohy]-ČervnovýProdej[Přepravní poplatky]","v":{"v":0,"d":"0.00 Kč"}},{"$f":"ČervnovýProdej[Prodej – zisk/ztráta]+ČervnovýProdej[Poštovné a balné – zisk/ztráta]","v":{"v":0,"d":"0.00 Kč"}}]
[null,null,"Celkem",{"$f":"\"Prodané položky: \"&SUBTOTAL(103,ČervnovýProdej[Popis položky])","v":"Prodané položky: 0"},{"$f":"SUBTOTAL(109,ČervnovýProdej[Kupní cena])","v":{"v":0,"d":"0.00 Kč"}},{"$f":"SUBTOTAL(109,ČervnovýProdej[Prodejní cena])","v":{"v":0,"d":"0.00 Kč"}},{"$f":"SUBTOTAL(109,ČervnovýProdej[Online poplatky])","v":{"v":0,"d":"0.00 Kč"}},{"$f":"SUBTOTAL(109,ČervnovýProdej[Poplatky za PayPal])","v":{"v":0,"d":"0.00 Kč"}},{"$f":"SUBTOTAL(109,ČervnovýProdej[Poplatky za platbu kartou])","v":{"v":0,"d":"0.00 Kč"}},{"$f":"SUBTOTAL(109,ČervnovýProdej[Přepravní výlohy])","v":{"v":0,"d":"0.00 Kč"}},{"$f":"SUBTOTAL(109,ČervnovýProdej[Přepravní poplatky])","v":{"v":0,"d":"0.00 Kč"}},{"$f":"SUBTOTAL(109,ČervnovýProdej[Prodej – zisk/ztráta])","v":{"v":0,"d":"0.00 Kč"}},{"$f":"SUBTOTAL(109,ČervnovýProdej[Poštovné a balné – zisk/ztráta])","v":{"v":0,"d":"0.00 Kč"}},{"$f":"SUBTOTAL(109,ČervnovýProdej[Celkový zisk/ztráta])","v":{"v":0,"d":"0.00 Kč"}}]
["Vývoj zisků a ztrát"]

{"sheet":"Červenec","index":6,"n_rows":9,"n_cols":14,"rows_kept":9,"merged":[[3,0,4,0],[6,0,7,0]]}
["ČERVENEC"]
["Internetový prodej",null,"ID aukce","Popis položky","Kupní cena","Prodejní cena","Online poplatky","Poplatky za PayPal","Poplatky za platbu kartou","Přepravní výlohy","Přepravní poplatky","Prodej – zisk/ztráta","Poštovné a balné – zisk/ztráta","Celkový zisk/ztráta"]
["Rok",{"$nulls":11},{"$f":"ČervencovýProdej[Přepravní výlohy]-ČervencovýProdej[Přepravní poplatky]","v":{"v":0,"d":"0.00 Kč"}},{"$f":"ČervencovýProdej[Prodej – zisk/ztráta]+ČervencovýProdej[Poštovné a balné – zisk/ztráta]","v":{"v":0,"d":"0.00 Kč"}}]
[{"$f":"RočníProdej","v":2012},{"$nulls":11},{"$f":"ČervencovýProdej[Přepravní výlohy]-ČervencovýProdej[Přepravní poplatky]","v":{"v":0,"d":"0.00 Kč"}},{"$f":"ČervencovýProdej[Prodej – zisk/ztráta]+ČervencovýProdej[Poštovné a balné – zisk/ztráta]","v":{"v":0,"d":"0.00 Kč"}}]
[{"$nulls":12},{"$f":"ČervencovýProdej[Přepravní výlohy]-ČervencovýProdej[Přepravní poplatky]","v":{"v":0,"d":"0.00 Kč"}},{"$f":"ČervencovýProdej[Prodej – zisk/ztráta]+ČervencovýProdej[Poštovné a balné – zisk/ztráta]","v":{"v":0,"d":"0.00 Kč"}}]
["Celkový zisk/ztráta",{"$nulls":11},{"$f":"ČervencovýProdej[Přepravní výlohy]-ČervencovýProdej[Přepravní poplatky]","v":{"v":0,"d":"0.00 Kč"}},{"$f":"ČervencovýProdej[Prodej – zisk/ztráta]+ČervencovýProdej[Poštovné a balné – zisk/ztráta]","v":{"v":0,"d":"0.00 Kč"}}]
[{"$f":"ČervencovýProdej[[#Totals],[Celkový zisk/ztráta]]","v":{"v":0,"d":"0.00 Kč"}},{"$nulls":11},{"$f":"ČervencovýProdej[Přepravní výlohy]-ČervencovýProdej[Přepravní poplatky]","v":{"v":0,"d":"0.00 Kč"}},{"$f":"ČervencovýProdej[Prodej – zisk/ztráta]+ČervencovýProdej[Poštovné a balné – zisk/ztráta]","v":{"v":0,"d":"0.00 Kč"}}]
[null,null,"Celkem",{"$f":"\"Prodané položky: \"&SUBTOTAL(103,ČervencovýProdej[Popis položky])","v":"Prodané položky: 0"},{"$f":"SUBTOTAL(109,ČervencovýProdej[Kupní cena])","v":{"v":0,"d":"0.00 Kč"}},{"$f":"SUBTOTAL(109,ČervencovýProdej[Prodejní cena])","v":{"v":0,"d":"0.00 Kč"}},{"$f":"SUBTOTAL(109,ČervencovýProdej[Online poplatky])","v":{"v":0,"d":"0.00 Kč"}},{"$f":"SUBTOTAL(109,ČervencovýProdej[Poplatky za PayPal])","v":{"v":0,"d":"0.00 Kč"}},{"$f":"SUBTOTAL(109,ČervencovýProdej[Poplatky za platbu kartou])","v":{"v":0,"d":"0.00 Kč"}},{"$f":"SUBTOTAL(109,ČervencovýProdej[Přepravní výlohy])","v":{"v":0,"d":"0.00 Kč"}},{"$f":"SUBTOTAL(109,ČervencovýProdej[Přepravní poplatky])","v":{"v":0,"d":"0.00 Kč"}},{"$f":"SUBTOTAL(109,ČervencovýProdej[Prodej – zisk/ztráta])","v":{"v":0,"d":"0.00 Kč"}},{"$f":"SUBTOTAL(109,ČervencovýProdej[Poštovné a balné – zisk/ztráta])","v":{"v":0,"d":"0.00 Kč"}},{"$f":"SUBTOTAL(109,ČervencovýProdej[Celkový zisk/ztráta])","v":{"v":0,"d":"0.00 Kč"}}]
["Vývoj zisků a ztrát"]

{"sheet":"Srpen","index":7,"n_rows":9,"n_cols":14,"rows_kept":9,"merged":[[3,0,4,0],[6,0,7,0]]}
["SRPEN"]
["Internetový prodej",null,"ID aukce","Popis položky","Kupní cena","Prodejní cena","Online poplatky","Poplatky za PayPal","Poplatky za platbu kartou","Přepravní výlohy","Přepravní poplatky","Prodej – zisk/ztráta","Poštovné a balné – zisk/ztráta","Celkový zisk/ztráta"]
["Rok",{"$nulls":11},{"$f":"SrpnovýProdej[Přepravní výlohy]-SrpnovýProdej[Přepravní poplatky]","v":{"v":0,"d":"0.00 Kč"}},{"$f":"SrpnovýProdej[Prodej – zisk/ztráta]+SrpnovýProdej[Poštovné a balné – zisk/ztráta]","v":{"v":0,"d":"0.00 Kč"}}]
[{"$f":"RočníProdej","v":2012},{"$nulls":11},{"$f":"SrpnovýProdej[Přepravní výlohy]-SrpnovýProdej[Přepravní poplatky]","v":{"v":0,"d":"0.00 Kč"}},{"$f":"SrpnovýProdej[Prodej – zisk/ztráta]+SrpnovýProdej[Poštovné a balné – zisk/ztráta]","v":{"v":0,"d":"0.00 Kč"}}]
[{"$nulls":12},{"$f":"SrpnovýProdej[Přepravní výlohy]-SrpnovýProdej[Přepravní poplatky]","v":{"v":0,"d":"0.00 Kč"}},{"$f":"SrpnovýProdej[Prodej – zisk/ztráta]+SrpnovýProdej[Poštovné a balné – zisk/ztráta]","v":{"v":0,"d":"0.00 Kč"}}]
["Celkový zisk/ztráta",{"$nulls":11},{"$f":"SrpnovýProdej[Přepravní výlohy]-SrpnovýProdej[Přepravní poplatky]","v":{"v":0,"d":"0.00 Kč"}},{"$f":"SrpnovýProdej[Prodej – zisk/ztráta]+SrpnovýProdej[Poštovné a balné – zisk/ztráta]","v":{"v":0,"d":"0.00 Kč"}}]
[{"$f":"SrpnovýProdej[[#Totals],[Celkový zisk/ztráta]]","v":{"v":0,"d":"0.00 Kč"}},{"$nulls":11},{"$f":"SrpnovýProdej[Přepravní výlohy]-SrpnovýProdej[Přepravní poplatky]","v":{"v":0,"d":"0.00 Kč"}},{"$f":"SrpnovýProdej[Prodej – zisk/ztráta]+SrpnovýProdej[Poštovné a balné – zisk/ztráta]","v":{"v":0,"d":"0.00 Kč"}}]
[null,null,"Celkem",{"$f":"\"Prodané položky: \"&SUBTOTAL(103,SrpnovýProdej[Popis položky])","v":"Prodané položky: 0"},{"$f":"SUBTOTAL(109,SrpnovýProdej[Kupní cena])","v":{"v":0,"d":"0.00 Kč"}},{"$f":"SUBTOTAL(109,SrpnovýProdej[Prodejní cena])","v":{"v":0,"d":"0.00 Kč"}},{"$f":"SUBTOTAL(109,SrpnovýProdej[Online poplatky])","v":{"v":0,"d":"0.00 Kč"}},{"$f":"SUBTOTAL(109,SrpnovýProdej[Poplatky za PayPal])","v":{"v":0,"d":"0.00 Kč"}},{"$f":"SUBTOTAL(109,SrpnovýProdej[Poplatky za platbu kartou])","v":{"v":0,"d":"0.00 Kč"}},{"$f":"SUBTOTAL(109,SrpnovýProdej[Přepravní výlohy])","v":{"v":0,"d":"0.00 Kč"}},{"$f":"SUBTOTAL(109,SrpnovýProdej[Přepravní poplatky])","v":{"v":0,"d":"0.00 Kč"}},{"$f":"SUBTOTAL(109,SrpnovýProdej[Prodej – zisk/ztráta])","v":{"v":0,"d":"0.00 Kč"}},{"$f":"SUBTOTAL(109,SrpnovýProdej[Poštovné a balné – zisk/ztráta])","v":{"v":0,"d":"0.00 Kč"}},{"$f":"SUBTOTAL(109,SrpnovýProdej[Celkový zisk/ztráta])","v":{"v":0,"d":"0.00 Kč"}}]
["Vývoj zisků a ztrát"]

{"sheet":"Září","index":8,"n_rows":9,"n_cols":14,"rows_kept":9,"merged":[[3,0,4,0],[6,0,7,0]]}
["ZÁŘÍ"]
["Internetový prodej",null,"ID aukce","Popis položky","Kupní cena","Prodejní cena","Online poplatky","Poplatky za PayPal","Poplatky za platbu kartou","Přepravní výlohy","Přepravní poplatky","Prodej – zisk/ztráta","Poštovné a balné – zisk/ztráta","Celkový zisk/ztráta"]
["Rok",{"$nulls":11},{"$f":"ZářijovýProdej[Přepravní výlohy]-ZářijovýProdej[Přepravní poplatky]","v":{"v":0,"d":"0.00 Kč"}},{"$f":"ZářijovýProdej[Prodej – zisk/ztráta]+ZářijovýProdej[Poštovné a balné – zisk/ztráta]","v":{"v":0,"d":"0.00 Kč"}}]
[{"$f":"RočníProdej","v":2012},{"$nulls":11},{"$f":"ZářijovýProdej[Přepravní výlohy]-ZářijovýProdej[Přepravní poplatky]","v":{"v":0,"d":"0.00 Kč"}},{"$f":"ZářijovýProdej[Prodej – zisk/ztráta]+ZářijovýProdej[Poštovné a balné – zisk/ztráta]","v":{"v":0,"d":"0.00 Kč"}}]
[{"$nulls":12},{"$f":"ZářijovýProdej[Přepravní výlohy]-ZářijovýProdej[Přepravní poplatky]","v":{"v":0,"d":"0.00 Kč"}},{"$f":"ZářijovýProdej[Prodej – zisk/ztráta]+ZářijovýProdej[Poštovné a balné – zisk/ztráta]","v":{"v":0,"d":"0.00 Kč"}}]
["Celkový zisk/ztráta",{"$nulls":11},{"$f":"ZářijovýProdej[Přepravní výlohy]-ZářijovýProdej[Přepravní poplatky]","v":{"v":0,"d":"0.00 Kč"}},{"$f":"ZářijovýProdej[Prodej – zisk/ztráta]+ZářijovýProdej[Poštovné a balné – zisk/ztráta]","v":{"v":0,"d":"0.00 Kč"}}]
[{"$f":"ZářijovýProdej[[#Totals],[Celkový zisk/ztráta]]","v":{"v":0,"d":"0.00 Kč"}},{"$nulls":11},{"$f":"ZářijovýProdej[Přepravní výlohy]-ZářijovýProdej[Přepravní poplatky]","v":{"v":0,"d":"0.00 Kč"}},{"$f":"ZářijovýProdej[Prodej – zisk/ztráta]+ZářijovýProdej[Poštovné a balné – zisk/ztráta]","v":{"v":0,"d":"0.00 Kč"}}]
[null,null,"Celkem",{"$f":"\"Prodané položky: \"&SUBTOTAL(103,ZářijovýProdej[Popis položky])","v":"Prodané položky: 0"},{"$f":"SUBTOTAL(109,ZářijovýProdej[Kupní cena])","v":{"v":0,"d":"0.00 Kč"}},{"$f":"SUBTOTAL(109,ZářijovýProdej[Prodejní cena])","v":{"v":0,"d":"0.00 Kč"}},{"$f":"SUBTOTAL(109,ZářijovýProdej[Online poplatky])","v":{"v":0,"d":"0.00 Kč"}},{"$f":"SUBTOTAL(109,ZářijovýProdej[Poplatky za PayPal])","v":{"v":0,"d":"0.00 Kč"}},{"$f":"SUBTOTAL(109,ZářijovýProdej[Poplatky za platbu kartou])","v":{"v":0,"d":"0.00 Kč"}},{"$f":"SUBTOTAL(109,ZářijovýProdej[Přepravní výlohy])","v":{"v":0,"d":"0.00 Kč"}},{"$f":"SUBTOTAL(109,ZářijovýProdej[Přepravní poplatky])","v":{"v":0,"d":"0.00 Kč"}},{"$f":"SUBTOTAL(109,ZářijovýProdej[Prodej – zisk/ztráta])","v":{"v":0,"d":"0.00 Kč"}},{"$f":"SUBTOTAL(109,ZářijovýProdej[Poštovné a balné – zisk/ztráta])","v":{"v":0,"d":"0.00 Kč"}},{"$f":"SUBTOTAL(109,ZářijovýProdej[Celkový zisk/ztráta])","v":{"v":0,"d":"0.00 Kč"}}]
["Vývoj zisků a ztrát"]

{"sheet":"Říjen","index":9,"n_rows":9,"n_cols":14,"rows_kept":9,"merged":[[3,0,4,0],[6,0,7,0]]}
["ŘÍJEN"]
["Internetový prodej",null,"ID aukce","Popis položky","Kupní cena","Prodejní cena","Online poplatky","Poplatky za PayPal","Poplatky za platbu kartou","Přepravní výlohy","Přepravní poplatky","Prodej – zisk/ztráta","Poštovné a balné – zisk/ztráta","Celkový zisk/ztráta"]
["Rok",{"$nulls":11},{"$f":"ŘíjnovýProdej[Přepravní výlohy]-ŘíjnovýProdej[Přepravní poplatky]","v":{"v":0,"d":"0.00 Kč"}},{"$f":"ŘíjnovýProdej[Prodej – zisk/ztráta]+ŘíjnovýProdej[Poštovné a balné – zisk/ztráta]","v":{"v":0,"d":"0.00 Kč"}}]
[{"$f":"RočníProdej","v":2012},{"$nulls":11},{"$f":"ŘíjnovýProdej[Přepravní výlohy]-ŘíjnovýProdej[Přepravní poplatky]","v":{"v":0,"d":"0.00 Kč"}},{"$f":"ŘíjnovýProdej[Prodej – zisk/ztráta]+ŘíjnovýProdej[Poštovné a balné – zisk/ztráta]","v":{"v":0,"d":"0.00 Kč"}}]
[{"$nulls":12},{"$f":"ŘíjnovýProdej[Přepravní výlohy]-ŘíjnovýProdej[Přepravní poplatky]","v":{"v":0,"d":"0.00 Kč"}},{"$f":"ŘíjnovýProdej[Prodej – zisk/ztráta]+ŘíjnovýProdej[Poštovné a balné – zisk/ztráta]","v":{"v":0,"d":"0.00 Kč"}}]
["Celkový zisk/ztráta",{"$nulls":11},{"$f":"ŘíjnovýProdej[Přepravní výlohy]-ŘíjnovýProdej[Přepravní poplatky]","v":{"v":0,"d":"0.00 Kč"}},{"$f":"ŘíjnovýProdej[Prodej – zisk/ztráta]+ŘíjnovýProdej[Poštovné a balné – zisk/ztráta]","v":{"v":0,"d":"0.00 Kč"}}]
[{"$f":"ŘíjnovýProdej[[#Totals],[Celkový zisk/ztráta]]","v":{"v":0,"d":"0.00 Kč"}},{"$nulls":11},{"$f":"ŘíjnovýProdej[Přepravní výlohy]-ŘíjnovýProdej[Přepravní poplatky]","v":{"v":0,"d":"0.00 Kč"}},{"$f":"ŘíjnovýProdej[Prodej – zisk/ztráta]+ŘíjnovýProdej[Poštovné a balné – zisk/ztráta]","v":{"v":0,"d":"0.00 Kč"}}]
[null,null,"Celkem",{"$f":"\"Prodané položky: \"&SUBTOTAL(103,ŘíjnovýProdej[Popis položky])","v":"Prodané položky: 0"},{"$f":"SUBTOTAL(109,ŘíjnovýProdej[Kupní cena])","v":{"v":0,"d":"0.00 Kč"}},{"$f":"SUBTOTAL(109,ŘíjnovýProdej[Prodejní cena])","v":{"v":0,"d":"0.00 Kč"}},{"$f":"SUBTOTAL(109,ŘíjnovýProdej[Online poplatky])","v":{"v":0,"d":"0.00 Kč"}},{"$f":"SUBTOTAL(109,ŘíjnovýProdej[Poplatky za PayPal])","v":{"v":0,"d":"0.00 Kč"}},{"$f":"SUBTOTAL(109,ŘíjnovýProdej[Poplatky za platbu kartou])","v":{"v":0,"d":"0.00 Kč"}},{"$f":"SUBTOTAL(109,ŘíjnovýProdej[Přepravní výlohy])","v":{"v":0,"d":"0.00 Kč"}},{"$f":"SUBTOTAL(109,ŘíjnovýProdej[Přepravní poplatky])","v":{"v":0,"d":"0.00 Kč"}},{"$f":"SUBTOTAL(109,ŘíjnovýProdej[Prodej – zisk/ztráta])","v":{"v":0,"d":"0.00 Kč"}},{"$f":"SUBTOTAL(109,ŘíjnovýProdej[Poštovné a balné – zisk/ztráta])","v":{"v":0,"d":"0.00 Kč"}},{"$f":"SUBTOTAL(109,ŘíjnovýProdej[Celkový zisk/ztráta])","v":{"v":0,"d":"0.00 Kč"}}]
["Vývoj zisků a ztrát"]

{"sheet":"Listopad","index":10,"n_rows":9,"n_cols":14,"rows_kept":9,"merged":[[3,0,4,0],[6,0,7,0]]}
["LISTOPAD"]
["Internetový prodej",null,"ID aukce","Popis položky","Kupní cena","Prodejní cena","Online poplatky","Poplatky za PayPal","Poplatky za platbu kartou","Přepravní výlohy","Přepravní poplatky","Prodej – zisk/ztráta","Poštovné a balné – zisk/ztráta","Celkový zisk/ztráta"]
["Rok",{"$nulls":11},{"$f":"ListopadovýProdej[Přepravní výlohy]-ListopadovýProdej[Přepravní poplatky]","v":{"v":0,"d":"0.00 Kč"}},{"$f":"ListopadovýProdej[Prodej – zisk/ztráta]+ListopadovýProdej[Poštovné a balné – zisk/ztráta]","v":{"v":0,"d":"0.00 Kč"}}]
[{"$f":"RočníProdej","v":2012},{"$nulls":11},{"$f":"ListopadovýProdej[Přepravní výlohy]-ListopadovýProdej[Přepravní poplatky]","v":{"v":0,"d":"0.00 Kč"}},{"$f":"ListopadovýProdej[Prodej – zisk/ztráta]+ListopadovýProdej[Poštovné a balné – zisk/ztráta]","v":{"v":0,"d":"0.00 Kč"}}]
[{"$nulls":12},{"$f":"ListopadovýProdej[Přepravní výlohy]-ListopadovýProdej[Přepravní poplatky]","v":{"v":0,"d":"0.00 Kč"}},{"$f":"ListopadovýProdej[Prodej – zisk/ztráta]+ListopadovýProdej[Poštovné a balné – zisk/ztráta]","v":{"v":0,"d":"0.00 Kč"}}]
["Celkový zisk/ztráta",{"$nulls":11},{"$f":"ListopadovýProdej[Přepravní výlohy]-ListopadovýProdej[Přepravní poplatky]","v":{"v":0,"d":"0.00 Kč"}},{"$f":"ListopadovýProdej[Prodej – zisk/ztráta]+ListopadovýProdej[Poštovné a balné – zisk/ztráta]","v":{"v":0,"d":"0.00 Kč"}}]
[{"$f":"ListopadovýProdej[[#Totals],[Celkový zisk/ztráta]]","v":{"v":0,"d":"0.00 Kč"}},{"$nulls":11},{"$f":"ListopadovýProdej[Přepravní výlohy]-ListopadovýProdej[Přepravní poplatky]","v":{"v":0,"d":"0.00 Kč"}},{"$f":"ListopadovýProdej[Prodej – zisk/ztráta]+ListopadovýProdej[Poštovné a balné – zisk/ztráta]","v":{"v":0,"d":"0.00 Kč"}}]
[null,null,"Celkem",{"$f":"\"Prodané položky: \"&SUBTOTAL(103,ListopadovýProdej[Popis položky])","v":"Prodané položky: 0"},{"$f":"SUBTOTAL(109,ListopadovýProdej[Kupní cena])","v":{"v":0,"d":"0.00 Kč"}},{"$f":"SUBTOTAL(109,ListopadovýProdej[Prodejní cena])","v":{"v":0,"d":"0.00 Kč"}},{"$f":"SUBTOTAL(109,ListopadovýProdej[Online poplatky])","v":{"v":0,"d":"0.00 Kč"}},{"$f":"SUBTOTAL(109,ListopadovýProdej[Poplatky za PayPal])","v":{"v":0,"d":"0.00 Kč"}},{"$f":"SUBTOTAL(109,ListopadovýProdej[Poplatky za platbu kartou])","v":{"v":0,"d":"0.00 Kč"}},{"$f":"SUBTOTAL(109,ListopadovýProdej[Přepravní výlohy])","v":{"v":0,"d":"0.00 Kč"}},{"$f":"SUBTOTAL(109,ListopadovýProdej[Přepravní poplatky])","v":{"v":0,"d":"0.00 Kč"}},{"$f":"SUBTOTAL(109,ListopadovýProdej[Prodej – zisk/ztráta])","v":{"v":0,"d":"0.00 Kč"}},{"$f":"SUBTOTAL(109,ListopadovýProdej[Poštovné a balné – zisk/ztráta])","v":{"v":0,"d":"0.00 Kč"}},{"$f":"SUBTOTAL(109,ListopadovýProdej[Celkový zisk/ztráta])","v":{"v":0,"d":"0.00 Kč"}}]
["Vývoj zisků a ztrát"]

{"sheet":"Prosinec","index":11,"n_rows":9,"n_cols":14,"rows_kept":9,"merged":[[3,0,4,0],[6,0,7,0]]}
["PROSINEC"]
["Internetový prodej",null,"ID aukce","Popis položky","Kupní cena","Prodejní cena","Online poplatky","Poplatky za PayPal","Poplatky za platbu kartou","Přepravní výlohy","Přepravní poplatky","Prodej – zisk/ztráta","Poštovné a balné – zisk/ztráta","Celkový zisk/ztráta"]
["Rok",{"$nulls":11},{"$f":"ProsincovýProdej[Přepravní výlohy]-ProsincovýProdej[Přepravní poplatky]","v":{"v":0,"d":"0.00 Kč"}},{"$f":"ProsincovýProdej[Prodej – zisk/ztráta]+ProsincovýProdej[Poštovné a balné – zisk/ztráta]","v":{"v":0,"d":"0.00 Kč"}}]
[{"$f":"RočníProdej","v":2012},{"$nulls":11},{"$f":"ProsincovýProdej[Přepravní výlohy]-ProsincovýProdej[Přepravní poplatky]","v":{"v":0,"d":"0.00 Kč"}},{"$f":"ProsincovýProdej[Prodej – zisk/ztráta]+ProsincovýProdej[Poštovné a balné – zisk/ztráta]","v":{"v":0,"d":"0.00 Kč"}}]
[{"$nulls":12},{"$f":"ProsincovýProdej[Přepravní výlohy]-ProsincovýProdej[Přepravní poplatky]","v":{"v":0,"d":"0.00 Kč"}},{"$f":"ProsincovýProdej[Prodej – zisk/ztráta]+ProsincovýProdej[Poštovné a balné – zisk/ztráta]","v":{"v":0,"d":"0.00 Kč"}}]
["Celkový zisk/ztráta",{"$nulls":11},{"$f":"ProsincovýProdej[Přepravní výlohy]-ProsincovýProdej[Přepravní poplatky]","v":{"v":0,"d":"0.00 Kč"}},{"$f":"ProsincovýProdej[Prodej – zisk/ztráta]+ProsincovýProdej[Poštovné a balné – zisk/ztráta]","v":{"v":0,"d":"0.00 Kč"}}]
[{"$f":"ProsincovýProdej[[#Totals],[Celkový zisk/ztráta]]","v":{"v":0,"d":"0.00 Kč"}},{"$nulls":11},{"$f":"ProsincovýProdej[Přepravní výlohy]-ProsincovýProdej[Přepravní poplatky]","v":{"v":0,"d":"0.00 Kč"}},{"$f":"ProsincovýProdej[Prodej – zisk/ztráta]+ProsincovýProdej[Poštovné a balné – zisk/ztráta]","v":{"v":0,"d":"0.00 Kč"}}]
[null,null,"Celkem",{"$f":"\"Prodané položky: \"&SUBTOTAL(103,ProsincovýProdej[Popis položky])","v":"Prodané položky: 0"},{"$f":"SUBTOTAL(109,ProsincovýProdej[Kupní cena])","v":{"v":0,"d":"0.00 Kč"}},{"$f":"SUBTOTAL(109,ProsincovýProdej[Prodejní cena])","v":{"v":0,"d":"0.00 Kč"}},{"$f":"SUBTOTAL(109,ProsincovýProdej[Online poplatky])","v":{"v":0,"d":"0.00 Kč"}},{"$f":"SUBTOTAL(109,ProsincovýProdej[Poplatky za PayPal])","v":{"v":0,"d":"0.00 Kč"}},{"$f":"SUBTOTAL(109,ProsincovýProdej[Poplatky za platbu kartou])","v":{"v":0,"d":"0.00 Kč"}},{"$f":"SUBTOTAL(109,ProsincovýProdej[Přepravní výlohy])","v":{"v":0,"d":"0.00 Kč"}},{"$f":"SUBTOTAL(109,ProsincovýProdej[Přepravní poplatky])","v":{"v":0,"d":"0.00 Kč"}},{"$f":"SUBTOTAL(109,ProsincovýProdej[Prodej – zisk/ztráta])","v":{"v":0,"d":"0.00 Kč"}},{"$f":"SUBTOTAL(109,ProsincovýProdej[Poštovné a balné – zisk/ztráta])","v":{"v":0,"d":"0.00 Kč"}},{"$f":"SUBTOTAL(109,ProsincovýProdej[Celkový zisk/ztráta])","v":{"v":0,"d":"0.00 Kč"}}]
["Vývoj zisků a ztrát"]

{"sheet":"Souhrn od začátku roku","index":12,"n_rows":16,"n_cols":11,"rows_kept":16,"merged":[[3,0,4,0],[6,0,7,0]]}
["Od začátku roku"]
["Souhrn",null,"Zisk/ztráta",{"$nulls":4},"Zisk/ztráta od začátku roku"]
["Rok",{"$nulls":6},"Měsíc","Prodej – zisk/ztráta","Poštovné a balné – zisk/ztráta","Celkový zisk/ztráta"]
[{"$f":"RočníProdej","v":2012},{"$nulls":6},"Leden",{"$f":"LednovýProdej[[#Totals],[Prodej – zisk/ztráta]]","v":{"v":79.5,"d":"79.50 Kč"}},{"$f":"LednovýProdej[[#Totals],[Poštovné a balné – zisk/ztráta]]","v":{"v":9.5,"d":"9.50 Kč"}},{"$f":"IF(AND(SouhrnOdZačátkuRoku[[#This Row],[Prodej – zisk/ztráta]]<>\"\",SouhrnOdZačátkuRoku[[#This Row],[Poštovné a balné – zisk/ztráta]]<>\"\"),SouhrnOdZačátkuRoku[[#This Row],[Prodej – zisk/ztráta]]+SouhrnOdZačátkuRoku[[#This Row],[Poštovné a balné – zisk/ztráta]],\"\")","v":{"v":89,"d":"89.00 Kč"}}]
[{"$nulls":7},"Únor",{"$f":"ÚnorovýProdej[[#Totals],[Prodej – zisk/ztráta]]","v":{"v":212.3,"d":"212.30 Kč"}},{"$f":"ÚnorovýProdej[[#Totals],[Poštovné a balné – zisk/ztráta]]","v":{"v":12.3,"d":"12.30 Kč"}},{"$f":"IF(AND(SouhrnOdZačátkuRoku[[#This Row],[Prodej – zisk/ztráta]]<>\"\",SouhrnOdZačátkuRoku[[#This Row],[Poštovné a balné – zisk/ztráta]]<>\"\"),SouhrnOdZačátkuRoku[[#This Row],[Prodej – zisk/ztráta]]+SouhrnOdZačátkuRoku[[#This Row],[Poštovné a balné – zisk/ztráta]],\"\")","v":{"v":224.60000000000002,"d":"224.60 Kč"}}]
["Měsíční vývoj prodeje:",{"$nulls":6},"Březen",{"$f":"BřeznovýProdej[[#Totals],[Prodej – zisk/ztráta]]","v":{"v":0,"d":"0.00 Kč"}},{"$f":"BřeznovýProdej[[#Totals],[Poštovné a balné – zisk/ztráta]]","v":{"v":0,"d":"0.00 Kč"}},{"$f":"IF(AND(SouhrnOdZačátkuRoku[[#This Row],[Prodej – zisk/ztráta]]<>\"\",SouhrnOdZačátkuRoku[[#This Row],[Poštovné a balné – zisk/ztráta]]<>\"\"),SouhrnOdZačátkuRoku[[#This Row],[Prodej – zisk/ztráta]]+SouhrnOdZačátkuRoku[[#This Row],[Poštovné a balné – zisk/ztráta]],\"\")","v":{"v":0,"d":"0.00 Kč"}}]
[{"$nulls":7},"Duben",{"$f":"DubnovýProdej[[#Totals],[Prodej – zisk/ztráta]]","v":{"v":0,"d":"0.00 Kč"}},{"$f":"DubnovýProdej[[#Totals],[Poštovné a balné – zisk/ztráta]]","v":{"v":0,"d":"0.00 Kč"}},{"$f":"IF(AND(SouhrnOdZačátkuRoku[[#This Row],[Prodej – zisk/ztráta]]<>\"\",SouhrnOdZačátkuRoku[[#This Row],[Poštovné a balné – zisk/ztráta]]<>\"\"),SouhrnOdZačátkuRoku[[#This Row],[Prodej – zisk/ztráta]]+SouhrnOdZačátkuRoku[[#This Row],[Poštovné a balné – zisk/ztráta]],\"\")","v":{"v":0,"d":"0.00 Kč"}}]
[{"$nulls":7},"Květen",{"$f":"KvětnovýProdej[[#Totals],[Prodej – zisk/ztráta]]","v":{"v":0,"d":"0.00 Kč"}},{"$f":"KvětnovýProdej[[#Totals],[Poštovné a balné – zisk/ztráta]]","v":{"v":0,"d":"0.00 Kč"}},{"$f":"IF(AND(SouhrnOdZačátkuRoku[[#This Row],[Prodej – zisk/ztráta]]<>\"\",SouhrnOdZačátkuRoku[[#This Row],[Poštovné a balné – zisk/ztráta]]<>\"\"),SouhrnOdZačátkuRoku[[#This Row],[Prodej – zisk/ztráta]]+SouhrnOdZačátkuRoku[[#This Row],[Poštovné a balné – zisk/ztráta]],\"\")","v":{"v":0,"d":"0.00 Kč"}}]
[{"$nulls":7},"Červen",{"$f":"ČervnovýProdej[[#Totals],[Prodej – zisk/ztráta]]","v":{"v":0,"d":"0.00 Kč"}},{"$f":"ČervnovýProdej[[#Totals],[Poštovné a balné – zisk/ztráta]]","v":{"v":0,"d":"0.00 Kč"}},{"$f":"IF(AND(SouhrnOdZačátkuRoku[[#This Row],[Prodej – zisk/ztráta]]<>\"\",SouhrnOdZačátkuRoku[[#This Row],[Poštovné a balné – zisk/ztráta]]<>\"\"),SouhrnOdZačátkuRoku[[#This Row],[Prodej – zisk/ztráta]]+SouhrnOdZačátkuRoku[[#This Row],[Poštovné a balné – zisk/ztráta]],\"\")","v":{"v":0,"d":"0.00 Kč"}}]
[{"$nulls":7},"Červenec",{"$f":"ČervencovýProdej[[#Totals],[Prodej – zisk/ztráta]]","v":{"v":0,"d":"0.00 Kč"}},{"$f":"ČervencovýProdej[[#Totals],[Poštovné a balné – zisk/ztráta]]","v":{"v":0,"d":"0.00 Kč"}},{"$f":"IF(AND(SouhrnOdZačátkuRoku[[#This Row],[Prodej – zisk/ztráta]]<>\"\",SouhrnOdZačátkuRoku[[#This Row],[Poštovné a balné – zisk/ztráta]]<>\"\"),SouhrnOdZačátkuRoku[[#This Row],[Prodej – zisk/ztráta]]+SouhrnOdZačátkuRoku[[#This Row],[Poštovné a balné – zisk/ztráta]],\"\")","v":{"v":0,"d":"0.00 Kč"}}]
[{"$nulls":7},"Srpen",{"$f":"SrpnovýProdej[[#Totals],[Prodej – zisk/ztráta]]","v":{"v":0,"d":"0.00 Kč"}},{"$f":"SrpnovýProdej[[#Totals],[Poštovné a balné – zisk/ztráta]]","v":{"v":0,"d":"0.00 Kč"}},{"$f":"IF(AND(SouhrnOdZačátkuRoku[[#This Row],[Prodej – zisk/ztráta]]<>\"\",SouhrnOdZačátkuRoku[[#This Row],[Poštovné a balné – zisk/ztráta]]<>\"\"),SouhrnOdZačátkuRoku[[#This Row],[Prodej – zisk/ztráta]]+SouhrnOdZačátkuRoku[[#This Row],[Poštovné a balné – zisk/ztráta]],\"\")","v":{"v":0,"d":"0.00 Kč"}}]
[{"$nulls":7},"Září",{"$f":"ZářijovýProdej[[#Totals],[Prodej – zisk/ztráta]]","v":{"v":0,"d":"0.00 Kč"}},{"$f":"ZářijovýProdej[[#Totals],[Poštovné a balné – zisk/ztráta]]","v":{"v":0,"d":"0.00 Kč"}},{"$f":"IF(AND(SouhrnOdZačátkuRoku[[#This Row],[Prodej – zisk/ztráta]]<>\"\",SouhrnOdZačátkuRoku[[#This Row],[Poštovné a balné – zisk/ztráta]]<>\"\"),SouhrnOdZačátkuRoku[[#This Row],[Prodej – zisk/ztráta]]+SouhrnOdZačátkuRoku[[#This Row],[Poštovné a balné – zisk/ztráta]],\"\")","v":{"v":0,"d":"0.00 Kč"}}]
[{"$nulls":7},"Říjen",{"$f":"ŘíjnovýProdej[[#Totals],[Prodej – zisk/ztráta]]","v":{"v":0,"d":"0.00 Kč"}},{"$f":"ŘíjnovýProdej[[#Totals],[Poštovné a balné – zisk/ztráta]]","v":{"v":0,"d":"0.00 Kč"}},{"$f":"IF(AND(SouhrnOdZačátkuRoku[[#This Row],[Prodej – zisk/ztráta]]<>\"\",SouhrnOdZačátkuRoku[[#This Row],[Poštovné a balné – zisk/ztráta]]<>\"\"),SouhrnOdZačátkuRoku[[#This Row],[Prodej – zisk/ztráta]]+SouhrnOdZačátkuRoku[[#This Row],[Poštovné a balné – zisk/ztráta]],\"\")","v":{"v":0,"d":"0.00 Kč"}}]
[{"$nulls":7},"Listopad",{"$f":"ListopadovýProdej[[#Totals],[Prodej – zisk/ztráta]]","v":{"v":0,"d":"0.00 Kč"}},{"$f":"ListopadovýProdej[[#Totals],[Poštovné a balné – zisk/ztráta]]","v":{"v":0,"d":"0.00 Kč"}},{"$f":"IF(AND(SouhrnOdZačátkuRoku[[#This Row],[Prodej – zisk/ztráta]]<>\"\",SouhrnOdZačátkuRoku[[#This Row],[Poštovné a balné – zisk/ztráta]]<>\"\"),SouhrnOdZačátkuRoku[[#This Row],[Prodej – zisk/ztráta]]+SouhrnOdZačátkuRoku[[#This Row],[Poštovné a balné – zisk/ztráta]],\"\")","v":{"v":0,"d":"0.00 Kč"}}]
[{"$nulls":7},"Prosinec",{"$f":"ProsincovýProdej[[#Totals],[Prodej – zisk/ztráta]]","v":{"v":0,"d":"0.00 Kč"}},{"$f":"ProsincovýProdej[[#Totals],[Poštovné a balné – zisk/ztráta]]","v":{"v":0,"d":"0.00 Kč"}},{"$f":"IF(AND(SouhrnOdZačátkuRoku[[#This Row],[Prodej – zisk/ztráta]]<>\"\",SouhrnOdZačátkuRoku[[#This Row],[Poštovné a balné – zisk/ztráta]]<>\"\"),SouhrnOdZačátkuRoku[[#This Row],[Prodej – zisk/ztráta]]+SouhrnOdZačátkuRoku[[#This Row],[Poštovné a balné – zisk/ztráta]],\"\")","v":{"v":0,"d":"0.00 Kč"}}]
[{"$nulls":7},"Celkem",{"$f":"SUBTOTAL(109,SouhrnOdZačátkuRoku[Prodej – zisk/ztráta])","v":{"v":291.8,"d":"291.80 Kč"}},{"$f":"SUBTOTAL(109,SouhrnOdZačátkuRoku[Poštovné a balné – zisk/ztráta])","v":{"v":21.8,"d":"21.80 Kč"}},{"$f":"SUBTOTAL(109,SouhrnOdZačátkuRoku[Celkový zisk/ztráta])","v":{"v":313.6,"d":"313.60 Kč"}}]